bitfinex/quotes_BTCUSD_20240730
["timestamp","ask_amount","ask_price","bid_price","bid_amount"]
[1722318600986,1.38341186,66677.0,66676.0,0.005973]
[1722318601192,1.46665521,66677.0,66676.0,0.005973]
[1722318601344,1.38341186,66677.0,66676.0,0.005973]
[1722318601540,1.33364168,66677.0,66676.0,0.005973]
[1722318601787,1.3825447,66677.0,66676.0,0.005973]
[1722318602574,1.46588271,66677.0,66676.0,0.005973]
[1722318603149,1.4746405,66677.0,66676.0,0.005973]
[1722318604843,1.39165576,66677.0,66676.0,0.005973]
[1722318605136,1.47524823,66677.0,66676.0,0.005973]
[1722318606695,1.48524823,66677.0,66676.0,0.005973]
[1722318607257,1.47524823,66677.0,66676.0,0.005973]
[1722318607458,1.50524823,66677.0,66676.0,0.005973]
[1722318607854,1.74521023,66677.0,66676.0,0.005973]
[1722318608267,1.7456076,66677.0,66676.0,0.005973]
[1722318608704,1.61236147,66677.0,66676.0,0.005973]
[1722318608889,1.84560642,66677.0,66676.0,0.005973]
[1722318609091,2.03840642,66677.0,66676.0,0.005973]
[1722318609474,2.25832335,66677.0,66676.0,0.005973]
[1722318609711,2.03840642,66677.0,66676.0,0.005973]
[1722318610077,2.03540642,66677.0,66676.0,0.005973]
[1722318610236,2.02940642,66677.0,66676.0,0.005973]
[1722318610440,2.03840642,66677.0,66676.0,0.005973]
[1722318610650,2.29036842,66677.0,66676.0,0.006973]
[1722318610851,0.01,66673.0,66672.0,0.009284]
[1722318611049,0.01,66673.0,66669.0,0.009284]
[1722318611050,1.447246,66670.0,66669.0,0.009284]
[1722318611274,2.13906093,66670.0,66669.0,0.009284]
[1722318611480,2.13890084,66670.0,66669.0,0.009284]
[1722318611681,2.28959516,66670.0,66669.0,0.009284]
[1722318612927,2.34036128,66670.0,66669.0,0.009284]
[1722318613089,2.36336128,66670.0,66669.0,0.009284]
[1722318613289,2.53232302,66670.0,66669.0,0.009284]
[1722318613692,1.58958136,66669.0,66668.0,1e-06]
[1722318613888,2.35780216,66669.0,66668.0,1e-06]
[1722318614754,2.35780216,66669.0,66641.0,0.0769]
[1722318614755,1.10979336,66657.0,66641.0,0.0769]
[1722318614910,1.62073353,66657.0,66641.0,0.0769]
[1722318615880,1.62073353,66657.0,66656.0,0.152084]
[1722318615881,0.86832517,66657.0,66656.0,0.152084]
[1722318616021,0.77208641,66657.0,66656.0,0.152084]
[1722318616365,0.58863298,66657.0,66656.0,0.15244364]
[1722318616894,0.34859898,66657.0,66656.0,0.15244364]
[1722318617652,0.34659898,66657.0,66656.0,0.15244364]
[1722318617988,0.35459898,66657.0,66656.0,0.15244364]
[1722318618133,0.20396594,66657.0,66656.0,0.15244364]
[1722318618324,0.19596594,66657.0,66656.0,0.15244364]
[1722318618551,0.43599994,66657.0,66656.0,0.15244364]
[1722318618710,0.20096594,66657.0,66656.0,0.15244364]
[1722318618911,0.19096594,66657.0,66656.0,0.15244364]
[1722318619112,0.43899994,66657.0,66656.0,0.15244364]
[1722318619315,0.55048199,66657.0,66656.0,0.15244364]
[1722318619682,0.43899994,66657.0,66656.0,0.15244364]
[1722318619848,0.44099994,66657.0,66656.0,0.15244364]
[1722318620051,0.42599994,66657.0,66656.0,0.15244364]
[1722318620254,0.43199994,66657.0,66656.0,0.15244364]
[1722318620454,0.43199994,66657.0,66656.0,0.15444364]
[1722318620654,0.43282994,66657.0,66656.0,0.15244364]
[1722318620838,0.2674596,66657.0,66656.0,0.15244364]
[1722318621266,0.5084936,66657.0,66656.0,0.15244364]
[1722318621472,0.42782994,66657.0,66656.0,0.15244364]
[1722318622218,0.07077894,66657.0,66656.0,0.15244364]
[1722318622431,0.06971897,66657.0,66656.0,0.15244364]
[1722318622571,0.51591867,66657.0,66656.0,0.15244364]
[1722318622772,0.53801614,66657.0,66656.0,0.15244364]
[1722318622975,0.42654184,66657.0,66656.0,0.15244364]
[1722318623209,0.5157143,66657.0,66656.0,0.15244364]
[1722318623380,0.51571131,66657.0,66656.0,0.15244364]
[1722318623596,0.42654184,66657.0,66656.0,0.15244364]
[1722318623800,0.53801614,66657.0,66656.0,0.15244364]
[1722318624162,0.42654184,66657.0,66656.0,0.15244364]
[1722318624418,0.53800152,66657.0,66656.0,0.15244364]
[1722318624978,0.42654184,66657.0,66656.0,0.15244364]
[1722318625309,0.50434429,66657.0,66656.0,0.15244364]
[1722318625719,0.29794218,66657.0,66656.0,0.15244364]
[1722318625947,0.17792518,66657.0,66656.0,0.15244364]
[1722318626913,0.29794218,66657.0,66656.0,0.15244364]
[1722318627635,0.29792386,66657.0,66656.0,0.15244364]
[1722318628079,0.29792515,66657.0,66656.0,0.15244364]
[1722318628514,0.17790815,66657.0,66656.0,0.15244364]
[1722318629915,0.17791579,66657.0,66656.0,0.15244364]
[1722318630137,0.17791579,66657.0,66656.0,0.51250064]
[1722318630138,0.13335362,66657.0,66656.0,0.51250064]
[1722318630356,0.00283,66657.0,66656.0,0.51250064]
[1722318631943,0.00283,66657.0,66656.0,0.27246264]
[1722318633118,0.00283,66657.0,66656.0,0.51250064]
[1722318634101,0.00283,66657.0,66656.0,0.75253864]
[1722318636420,0.00283,66657.0,66656.0,0.76130682]
[1722318637282,0.00283,66657.0,66656.0,0.78430682]
[1722318637828,0.00283,66657.0,66656.0,0.52126882]
[1722318640298,0.00283,66657.0,66656.0,1.00134482]
[1722318640448,0.00283,66657.0,66656.0,0.76130682]
[1722318640648,0.00283,66657.0,66656.0,1.02434482]
[1722318640857,0.00283,66657.0,66656.0,0.78430682]
[1722318642178,0.00283,66657.0,66656.0,0.52126882]
[1722318651950,0.00283,66657.0,66656.0,0.37846882]
[1722318652143,0.00283,66657.0,66656.0,0.16041182]
[1722318654615,0.00283,66657.0,66656.0,0.76050682]
[1722318655512,0.00283,66657.0,66656.0,0.88517976]
[1722318655715,0.00283,66657.0,66656.0,1.14821677]
[1722318655914,0.00283,66657.0,66656.0,1.14821631]
[1722318656070,0.00283,66657.0,66656.0,1.02354482]
[1722318656875,0.00283,66657.0,66656.0,1.14821639]
[1722318657084,0.00283,66657.0,66656.0,1.02354482]
[1722318657339,0.00283,66657.0,66656.0,1.1482167]
[1722318657749,0.00283,66657.0,66656.0,1.02354482]
[1722318659715,0.00283,66657.0,66656.0,1.14821978]
[1722318660543,0.00283,66657.0,66656.0,1.14821976]
[1722318660763,0.00283,66657.0,66656.0,1.02354482]
[1722318660956,0.00283,66657.0,66656.0,0.52046882]
[1722318661114,0.00283,66657.0,66656.0,0.28043082]
[1722318661323,0.00283,66657.0,66656.0,0.52046882]
[1722318661524,0.06600587,66657.0,66656.0,0.52046882]
[1722318662349,0.13297823,66657.0,66656.0,0.52046882]
[1722318662716,0.13301255,66657.0,66656.0,0.52046882]
[1722318662917,0.13301247,66657.0,66656.0,0.52046882]
[1722318664719,0.06600587,66657.0,66656.0,0.52046882]
[1722318666253,0.06656863,66657.0,66656.0,0.52046882]
[1722318666800,0.06656863,66657.0,66656.0,0.28043082]
[1722318667018,0.15592735,66657.0,66656.0,0.28043082]
[1722318667225,0.15604858,66657.0,66656.0,0.28043082]
[1722318667608,0.18670686,66657.0,66656.0,0.01841182]
[1722318667811,0.52751656,66657.0,66656.0,0.00964364]
[1722318668011,0.48874086,66657.0,66656.0,0.00964364]
[1722318668457,0.42674086,66657.0,66656.0,0.00964364]
[1722318669464,0.56078775,66657.0,66656.0,0.00964364]
[1722318669867,0.18670686,66657.0,66656.0,0.00964364]
[1722318670064,0.06668986,66657.0,66656.0,0.00964364]
[1722318670265,0.17839394,66657.0,66656.0,0.00964364]
[1722318670481,0.06668986,66657.0,66656.0,0.00964364]
[1722318671930,0.20954128,66657.0,66656.0,0.00964364]
[1722318672134,0.18670686,66657.0,66656.0,0.00964364]
[1722318672981,0.42674086,66657.0,66656.0,0.00964364]
[1722318673903,0.42445532,66657.0,66656.0,0.00964364]
[1722318674920,0.66448932,66657.0,66656.0,0.00964364]
[1722318675124,0.78453366,66657.0,66656.0,0.00964364]
[1722318675599,0.78453366,66657.0,66656.0,0.009284]
[1722318675600,1.22327706,66657.0,66656.0,0.009284]
[1722318676011,1.37363753,66657.0,66656.0,0.009284]
[1722318676140,1.2228005,66657.0,66656.0,0.009284]
[1722318676342,1.1752007,66657.0,66656.0,0.009284]
[1722318676688,1.22279837,66657.0,66656.0,0.009284]
[1722318677051,1.22179837,66657.0,66656.0,0.009284]
[1722318677248,1.22079837,66657.0,66656.0,0.009284]
[1722318677460,1.22179837,66657.0,66656.0,0.009284]
[1722318677674,1.22179837,66657.0,66656.0,0.010284]
[1722318677875,1.22079837,66657.0,66656.0,0.010284]
[1722318678091,1.36699837,66657.0,66656.0,0.009284]
[1722318678374,1.36999837,66657.0,66656.0,0.009284]
[1722318678758,1.60703237,66657.0,66656.0,0.009284]
[1722318678897,1.78908459,66657.0,66656.0,0.009284]
[1722318679096,1.78908459,66657.0,66654.0,0.000913]
[1722318679097,1.090189,66655.0,66654.0,0.000913]
[1722318679321,1.61704585,66655.0,66654.0,0.000913]
[1722318679529,1.55547153,66655.0,66654.0,0.000913]
[1722318679736,1.6114943,66655.0,66654.0,0.000913]
[1722318681328,1.6254943,66655.0,66654.0,0.000913]
[1722318681527,1.6114943,66655.0,66654.0,0.000913]
[1722318682384,1.61194235,66655.0,66654.0,0.000913]
[1722318682585,1.62394235,66655.0,66654.0,0.000913]
[1722318683091,1.63494235,66655.0,66654.0,0.000913]
[1722318683449,1.78551527,66655.0,66654.0,0.000913]
[1722318683788,1.63494235,66655.0,66654.0,0.000913]
[1722318685323,1.78549246,66655.0,66654.0,0.000913]
[1722318685634,1.58683913,66655.0,66654.0,0.000913]
[1722318685770,1.7856156,66655.0,66654.0,0.000913]
[1722318686171,1.78556769,66655.0,66654.0,0.000913]
[1722318686478,1.63504384,66655.0,66654.0,0.000913]
[1722318686702,1.78553872,66655.0,66654.0,0.000913]
[1722318687229,1.64504384,66655.0,66654.0,0.000913]
[1722318687580,1.63504384,66655.0,66654.0,0.000913]
[1722318687782,1.62304384,66655.0,66654.0,0.000913]
[1722318688009,1.61204384,66655.0,66654.0,0.000913]
[1722318688415,1.64004384,66655.0,66654.0,0.000913]
[1722318688759,1.60183913,66655.0,66654.0,0.000913]
[1722318688927,1.65947174,66655.0,66654.0,0.000913]
[1722318689434,1.64547174,66655.0,66654.0,0.000913]
[1722318689606,1.63147174,66655.0,66654.0,0.000913]
[1722318689792,1.64547174,66655.0,66654.0,0.000913]
[1722318689992,1.65947174,66655.0,66654.0,0.000913]
[1722318690190,1.64947174,66655.0,66654.0,0.000913]
[1722318690809,1.7999299,66655.0,66654.0,0.000913]
[1722318691679,1.8099299,66655.0,66654.0,0.000913]
[1722318691885,1.7999299,66655.0,66654.0,0.000913]
[1722318692091,1.79984072,66655.0,66654.0,0.000913]
[1722318693304,1.64939996,66655.0,66654.0,0.000913]
[1722318694537,1.52309996,66655.0,66654.0,0.000913]
[1722318694942,1.13236364,66655.0,66654.0,0.000913]
[1722318695143,1.12307964,66655.0,66654.0,0.000913]
[1722318695356,0.83476081,66655.0,66654.0,0.000913]
[1722318695510,0.44408577,66655.0,66654.0,0.00127264]
[1722318695709,0.55556669,66655.0,66654.0,0.00127264]
[1722318695911,0.53327326,66655.0,66654.0,0.00127264]
[1722318696115,0.51927326,66655.0,66654.0,0.00127264]
[1722318696332,0.50324729,66655.0,66654.0,0.00127264]
[1722318696533,0.62173019,66655.0,66654.0,0.00127264]
[1722318696738,0.86777219,66655.0,66654.0,0.00127264]
[1722318696935,0.62773019,66655.0,66654.0,0.00127264]
[1722318697506,0.86777219,66655.0,66654.0,0.00127264]
[1722318698607,0.86780669,66655.0,66654.0,0.00127264]
[1722318699560,0.75628929,66655.0,66654.0,0.00127264]
[1722318699930,0.80373709,66655.0,66654.0,0.000913]
[1722318700103,1.04377909,66655.0,66654.0,0.000913]
[1722318700319,0.80373709,66655.0,66654.0,0.000913]
[1722318700503,1.04377909,66655.0,66654.0,0.000913]
[1722318700720,0.80373709,66655.0,66654.0,0.000913]
[1722318701280,0.80373709,66655.0,66654.0,0.00127264]
[1722318701857,0.80383663,66655.0,66654.0,0.00127264]
[1722318702060,0.71651929,66655.0,66654.0,0.00127264]
[1722318703660,0.71651929,66655.0,66654.0,0.000913]
[1722318703661,0.86715233,66655.0,66654.0,0.000913]
[1722318703879,1.10719433,66655.0,66654.0,0.000913]
[1722318704299,1.24109651,66655.0,66654.0,0.000913]
[1722318704945,1.24568698,66655.0,66654.0,0.000913]
[1722318705169,1.37978646,66655.0,66654.0,0.000913]
[1722318705659,1.37980062,66655.0,66654.0,0.000913]
[1722318706144,1.24583422,66655.0,66654.0,0.000913]
[1722318706370,1.24130923,66655.0,66654.0,0.000913]
[1722318706816,1.10734157,66655.0,66654.0,0.000913]
[1722318708020,1.34738357,66655.0,66654.0,0.000913]
[1722318708233,1.05980281,66655.0,66654.0,0.000913]
[1722318708472,1.13038226,66655.0,66654.0,0.000913]
[1722318708670,1.25163421,66655.0,66654.0,0.000913]
[1722318708870,1.22809443,66655.0,66654.0,0.000913]
[1722318709525,1.37882613,66655.0,66654.0,0.000913]
[1722318709983,1.22809443,66655.0,66654.0,0.000913]
[1722318710690,1.37882613,66655.0,66654.0,0.000913]
[1722318710922,1.10684248,66655.0,66654.0,0.000913]
[1722318711627,1.05980281,66655.0,66654.0,0.000913]
[1722318711874,1.25789997,66655.0,66654.0,0.000913]
[1722318712602,1.10708919,66655.0,66654.0,0.000913]
[1722318712813,1.25793123,66655.0,66654.0,0.000913]
[1722318712997,1.28147009,66655.0,66654.0,0.000913]
[1722318713453,1.13062805,66655.0,66654.0,0.000913]
[1722318713704,1.10708919,66655.0,66654.0,0.000913]
[1722318715067,1.10708452,66655.0,66654.0,0.000913]
[1722318715316,0.86704252,66655.0,66654.0,0.000913]
[1722318715552,0.62698564,66655.0,66654.0,0.06637264]
[1722318715786,0.62698564,66655.0,66654.0,0.14657264]
[1722318715787,1.00118799,66655.0,66654.0,0.14657264]
[1722318716694,0.89056571,66655.0,66654.0,0.14657264]
[1722318716803,0.13982767,66655.0,66654.0,0.14657264]
[1722318717010,0.13982767,66655.0,66654.0,0.69943964]
[1722318717011,0.09256084,66655.0,66654.0,0.69943964]
[1722318717210,0.09256084,66655.0,66654.0,0.96609916]
[1722318717211,0.20439389,66655.0,66654.0,0.96609916]
[1722318717417,0.03653807,66655.0,66654.0,0.96248464]
[1722318717834,0.03053807,66655.0,66654.0,0.96248464]
[1722318718051,0.007,66655.0,66654.0,0.96248464]
[1722318718273,0.01,66655.0,66654.0,0.96248464]
[1722318718709,0.00083,66657.0,66656.0,0.73705464]
[1722318718873,0.00083,66657.0,66656.0,0.76005464]
[1722318721250,0.02436427,66657.0,66656.0,0.76005464]
[1722318721437,0.00083,66657.0,66656.0,0.52001664]
[1722318721734,0.00183,66657.0,66656.0,0.76005464]
[1722318722113,0.00283,66657.0,66656.0,0.76205464]
[1722318722725,0.00383,66657.0,66656.0,0.76405464]
[1722318754502,0.02535353,66678.0,66677.0,1.35551253]
[1722318754889,0.00183,66678.0,66677.0,1.35551253]
[1722318755217,0.00183,66678.0,66677.0,1.35751253]
[1722318756595,0.00183,66678.0,66677.0,1.48214063]
[1722318757563,0.02535349,66678.0,66677.0,1.35751253]
[1722318757831,0.02535349,66678.0,66677.0,1.48214063]
[1722318758412,0.02535349,66678.0,66677.0,1.72210263]
[1722318758586,0.02535349,66678.0,66677.0,1.48214063]
[1722318759009,0.02535349,66678.0,66677.0,1.72210263]
[1722318759152,0.00183,66678.0,66677.0,1.72210263]
[1722318759354,0.00183,66678.0,66677.0,1.48214063]
[1722318759560,0.0014942,66696.0,66695.0,0.00035964]
[1722318759779,0.00084,66697.0,66696.0,0.12030664]
[1722318759985,0.00084,66697.0,66696.0,1.05322908]
[1722318760188,0.00084,66697.0,66696.0,1.31612308]
[1722318760901,0.00084,66697.0,66696.0,1.31611692]
[1722318761128,0.00084,66697.0,66696.0,1.32311692]
[1722318761327,0.00084,66697.0,66696.0,1.26062168]
[1722318761524,0.00084,66697.0,66696.0,1.38521674]
[1722318761986,0.00084,66697.0,66696.0,1.44528674]
[1722318762276,0.02435852,66697.0,66696.0,1.44728674]
[1722318762636,0.02435852,66697.0,66696.0,1.42528674]
[1722318763052,0.02435852,66697.0,66696.0,1.42528589]
[1722318763225,0.02435852,66697.0,66696.0,1.43128589]
[1722318763655,0.02435852,66697.0,66696.0,1.41828589]
[1722318763872,0.02435852,66697.0,66696.0,1.43228589]
[1722318764081,0.02435852,66697.0,66696.0,1.30769168]
[1722318764411,0.02435852,66697.0,66696.0,1.41828591]
[1722318764781,0.02435852,66697.0,66696.0,1.30769168]
[1722318765370,0.02435852,66697.0,66696.0,1.32169168]
[1722318765599,0.02435852,66697.0,66696.0,1.30769168]
[1722318765764,0.02435852,66697.0,66696.0,1.32169168]
[1722318766392,0.02435852,66697.0,66696.0,1.30769168]
[1722318766594,0.00084,66697.0,66696.0,1.30769168]
[1722318767192,0.00084,66697.0,66696.0,1.32169168]
[1722318768394,0.00084,66697.0,66696.0,1.07179768]
[1722318768615,0.00084,66697.0,66696.0,0.12835964]
[1722318768847,0.00084,66697.0,66696.0,0.14830664]
[1722318769049,0.00084,66697.0,66696.0,0.38820064]
[1722318769665,0.02435985,66697.0,66696.0,0.37420064]
[1722318769872,0.02435985,66697.0,66696.0,0.38328551]
[1722318770075,0.00084,66697.0,66696.0,0.40628551]
[1722318770396,0.00084,66697.0,66696.0,0.42028551]
[1722318770787,0.00084,66697.0,66696.0,0.18039151]
[1722318771505,0.00084,66697.0,66696.0,0.16639151]
[1722318771708,0.00084,66697.0,66696.0,0.04644451]
[1722318771887,0.00084,66697.0,66696.0,0.06044451]
[1722318773419,0.02436014,66697.0,66696.0,0.06044451]
[1722318773881,0.00084,66697.0,66696.0,0.06044451]
[1722318776077,0.00208616,66697.0,66696.0,0.06044451]
[1722318776438,0.120785,66697.0,66696.0,0.03744451]
[1722318776640,0.26675786,66697.0,66696.0,0.03744451]
[1722318776843,0.27748523,66697.0,66696.0,0.03744451]
[1722318777066,0.27897943,66697.0,66696.0,0.03744451]
[1722318777445,0.36844044,66697.0,66696.0,0.03744451]
[1722318777809,0.27923965,66697.0,66696.0,0.03744451]
[1722318777978,0.26801419,66697.0,66696.0,0.03744451]
[1722318778735,0.27930777,66697.0,66696.0,0.03744451]
[1722318778932,0.3463888,66697.0,66696.0,0.03744451]
[1722318779088,0.34515835,66697.0,66696.0,0.03744451]
[1722318779471,0.27807732,66697.0,66696.0,0.03744451]
[1722318780089,0.27897917,66697.0,66696.0,0.03744451]
[1722318780291,0.27807732,66697.0,66696.0,0.03744451]
[1722318780514,0.58166732,66697.0,66696.0,0.03744451]
[1722318780716,0.58166732,66697.0,66696.0,0.02835964]
[1722318780717,0.82155732,66697.0,66696.0,0.02835964]
[1722318780955,0.91713063,66697.0,66696.0,0.02835964]
[1722318781198,1.15702063,66697.0,66696.0,0.02835964]
[1722318781384,1.06144732,66697.0,66696.0,0.02835964]
[1722318781541,1.00519997,66697.0,66696.0,0.02835964]
[1722318781753,1.00519997,66697.0,66696.0,0.00035964]
[1722318781958,0.87101301,66697.0,66696.0,0.00235964]
[1722318782156,0.87101301,66697.0,66696.0,0.00435964]
[1722318782358,0.86788793,66697.0,66696.0,0.00235964]
[1722318782948,0.86822648,66697.0,66696.0,0.00235964]
[1722318783643,0.86822648,66697.0,66696.0,0.00035964]
[1722318784089,0.87022648,66697.0,66696.0,0.00035964]
[1722318784473,0.89375006,66697.0,66696.0,0.00035964]
[1722318784667,0.599735,66696.0,66695.0,0.00035964]
[1722318784904,0.599735,66696.0,66680.0,0.0613]
[1722318784905,0.27564641,66696.0,66691.0,0.00035964]
[1722318785156,0.119956,66691.0,66690.0,0.00035964]
[1722318785364,0.378816,66690.0,66688.0,0.00035964]
[1722318785547,0.19672044,66689.0,66688.0,0.00035964]
[1722318785739,0.97987744,66689.0,66688.0,0.00035964]
[1722318785943,0.97987744,66689.0,66687.0,0.00035964]
[1722318785944,0.76125791,66689.0,66687.0,0.00035964]
[1722318786146,0.498795,66686.0,66685.0,0.00035964]
[1722318786363,1.01446473,66686.0,66685.0,0.00035964]
[1722318786647,1.25439473,66686.0,66685.0,0.00035964]
[1722318786885,0.423295,66686.0,66685.0,0.00035964]
[1722318787108,0.49601247,66686.0,66685.0,0.00035964]
[1722318787305,0.25608247,66686.0,66685.0,0.00035964]
[1722318787544,0.60776977,66686.0,66685.0,0.00035964]
[1722318787715,0.97587247,66686.0,66685.0,0.00035964]
[1722318787916,1.10997916,66686.0,66685.0,0.00035964]
[1722318788057,1.10997916,66686.0,66685.0,0.00535964]
[1722318788462,1.10997916,66686.0,66685.0,0.005]
[1722318788686,0.079,66684.0,66680.0,0.00035964]
[1722318788884,0.77766981,66681.0,66680.0,0.00035964]
[1722318789085,0.97863547,66681.0,66680.0,0.00035964]
[1722318790030,0.97863547,66681.0,66680.0,0.00735964]
[1722318790435,0.73868747,66681.0,66680.0,0.00735964]
[1722318791373,0.73868747,66681.0,66680.0,0.00035964]
[1722318791998,0.73868747,66681.0,66680.0,0.01135964]
[1722318792416,0.8503026,66681.0,66680.0,0.01135964]
[1722318792627,0.87382608,66681.0,66680.0,0.01135964]
[1722318793114,0.85029785,66681.0,66680.0,0.01135964]
[1722318793533,0.19269147,66681.0,66680.0,0.02135964]
[1722318793737,0.16611069,66681.0,66680.0,0.02135964]
[1722318793941,0.1214682,66681.0,66680.0,0.02135964]
[1722318794151,0.119974,66681.0,66680.0,0.02135964]
[1722318794530,0.08928332,66683.0,66682.0,0.00035964]
[1722318794531,0.119972,66683.0,66682.0,0.00035964]
[1722318794715,0.1214662,66683.0,66682.0,0.00035964]
[1722318794920,0.16610719,66683.0,66682.0,0.00035964]
[1722318795142,0.16461299,66683.0,66682.0,0.00035964]
[1722318795339,0.64449499,66683.0,66682.0,0.00035964]
[1722318795561,0.64449499,66683.0,66680.0,0.021]
[1722318795562,0.499716,66682.0,66681.0,0.00035964]
[1722318795785,0.499716,66682.0,66681.0,0.07825964]
[1722318795786,0.18419759,66682.0,66681.0,0.07825964]
[1722318795990,0.61636335,66694.0,66683.0,0.00035964]
[1722318795991,0.119969,66684.0,66683.0,0.00035964]
[1722318796141,0.3613622,66691.0,66690.0,0.00035964]
[1722318796355,0.78384228,66691.0,66690.0,0.00035964]
[1722318796561,0.67223129,66691.0,66690.0,0.00035964]
[1722318796767,0.69575904,66691.0,66690.0,0.00035964]
[1722318796964,0.69725324,66691.0,66690.0,0.00035964]
[1722318797413,0.80837003,66691.0,66690.0,0.00035964]
[1722318797628,0.67323129,66691.0,66690.0,0.00035964]
[1722318798485,0.7848217,66691.0,66690.0,0.00035964]
[1722318798685,0.67323129,66691.0,66690.0,0.00035964]
[1722318800270,0.78486602,66691.0,66690.0,0.00035964]
[1722318800424,0.67323129,66691.0,66690.0,0.00035964]
[1722318800629,0.7224663,66691.0,66690.0,0.00035964]
[1722318800844,0.67323129,66691.0,66690.0,0.00035964]
[1722318801587,0.78485642,66691.0,66690.0,0.00035964]
[1722318801787,0.359884,66688.0,66687.0,0.00035964]
[1722318801990,0.359884,66688.0,66678.0,0.193713]
[1722318801991,0.599815,66687.0,66686.0,0.00035964]
[1722318802166,0.78388651,66687.0,66686.0,0.00035964]
[1722318802344,0.67226629,66687.0,66686.0,0.00035964]
[1722318802548,0.78387628,66687.0,66686.0,0.00035964]
[1722318802776,0.73923451,66687.0,66686.0,0.00035964]
[1722318802974,0.67226629,66687.0,66686.0,0.00035964]
[1722318803180,0.73923451,66687.0,66686.0,0.06645964]
[1722318803376,0.73923451,66687.0,66686.0,0.00035964]
[1722318803693,0.73923451,66687.0,66685.0,0.00035964]
[1722318803694,0.47986,66686.0,66685.0,0.00035964]
[1722318803941,0.91220629,66686.0,66685.0,0.00035964]
[1722318804537,1.00146977,66686.0,66685.0,0.00035964]
[1722318804716,1.02499708,66686.0,66685.0,0.00035964]
[1722318804914,1.02499708,66686.0,66685.0,0.00535964]
[1722318805095,1.00146977,66686.0,66685.0,0.00535964]
[1722318805295,1.00146977,66686.0,66685.0,0.01035964]
[1722318806644,1.45619467,66686.0,66685.0,0.01]
[1722318806847,1.60686119,66686.0,66685.0,0.01]
[1722318807057,1.61686119,66686.0,66685.0,0.01]
[1722318807347,1.60686119,66686.0,66685.0,0.01]
[1722318807489,1.68971409,66686.0,66685.0,0.01]
[1722318807690,1.68971409,66686.0,66685.0,0.005]
[1722318807691,1.60686119,66686.0,66685.0,0.005]
[1722318807890,0.839842,66679.0,66678.0,0.000913]
[1722318808090,1.22287469,66679.0,66678.0,0.000913]
[1722318808302,1.11132021,66679.0,66678.0,0.000913]
[1722318808501,1.13485118,66679.0,66678.0,0.000913]
[1722318808701,1.19605118,66679.0,66678.0,0.000913]
[1722318808969,1.1476573,66679.0,66678.0,0.000913]
[1722318809172,1.1476573,66679.0,66678.0,0.00127264]
[1722318809173,0.89587556,66679.0,66678.0,0.00127264]
[1722318809367,0.3575777,66679.0,66678.0,0.00127264]
[1722318809595,0.21895926,66679.0,66678.0,0.00127264]
[1722318809804,0.19542829,66679.0,66678.0,0.00127264]
[1722318810078,0.43538329,66679.0,66678.0,0.00127264]
[1722318810459,0.19642829,66679.0,66678.0,0.00127264]
[1722318810655,0.24105762,66679.0,66678.0,0.00127264]
[1722318810858,0.48401262,66679.0,66678.0,0.00127264]
[1722318811062,0.72396762,66679.0,66678.0,0.00127264]
[1722318811504,0.48401262,66679.0,66678.0,0.00127264]
[1722318812021,0.43938329,66679.0,66678.0,0.00127264]
[1722318812225,0.48402894,66679.0,66678.0,0.00127264]
[1722318812562,0.43938329,66679.0,66678.0,0.00127264]
[1722318813019,0.22295791,66679.0,66678.0,0.00127264]
[1722318813434,0.43938329,66679.0,66678.0,0.00127264]
[1722318814335,0.19942829,66679.0,66678.0,0.00127264]
[1722318814549,0.26639677,66679.0,66678.0,0.00127264]
[1722318814734,0.50635177,66679.0,66678.0,0.00127264]
[1722318815304,0.50235177,66679.0,66678.0,0.00127264]
[1722318815705,0.14241977,66679.0,66678.0,0.00427264]
[1722318815903,0.12015902,66679.0,66678.0,0.14657264]
[1722318816126,0.12015902,66679.0,66678.0,0.26655164]
[1722318816302,0.07545129,66679.0,66678.0,0.26655164]
[1722318816659,0.14368776,66679.0,66678.0,0.26655164]
[1722318816857,0.14068776,66679.0,66678.0,0.26655164]
[1722318817066,0.09598003,66679.0,66678.0,0.26655164]
[1722318817244,0.14068776,66679.0,66678.0,0.26655164]
[1722318817443,0.14068776,66679.0,66678.0,0.26355164]
[1722318817646,0.14068776,66679.0,66678.0,0.27155164]
[1722318818260,0.11715902,66679.0,66678.0,0.75146964]
[1722318818460,0.04470773,66685.0,66684.0,0.00035964]
[1722318818637,0.04470773,66685.0,66684.0,0.12032764]
[1722318818638,0.11837237,66685.0,66684.0,0.12032764]
[1722318818838,0.04470773,66687.0,66685.0,0.00035964]
[1722318819156,0.04470773,66687.0,66685.0,0.12032664]
[1722318819157,0.07417765,66686.0,66685.0,0.12032664]
[1722318819322,0.07417765,66686.0,66685.0,0.00035964]
[1722318819523,0.07417765,66686.0,66683.0,0.259169]
[1722318819524,0.04473704,66687.0,66686.0,0.00035964]
[1722318819742,0.119959,66689.0,66688.0,0.00035964]
[1722318819939,0.23847864,66689.0,66688.0,0.00035964]
[1722318820182,0.23944048,66689.0,66688.0,0.00035964]
[1722318820414,0.23847864,66689.0,66688.0,0.00035964]
[1722318820709,0.19472925,66689.0,66688.0,0.00035964]
[1722318820914,0.19373333,66689.0,66688.0,0.00035964]
[1722318821580,0.28436489,66689.0,66688.0,0.01435964]
[1722318821957,0.09067345,66689.0,66688.0,0.01435964]
[1722318822192,0.09067345,66689.0,66688.0,0.00735964]
[1722318822193,0.2844688,66689.0,66688.0,0.00735964]
[1722318822387,0.023526,66689.0,66688.0,0.01635964]
[1722318822551,0.30798011,66689.0,66688.0,0.01635964]
[1722318822751,0.30648591,66689.0,66688.0,0.01635964]
[1722318823166,0.30648591,66689.0,66688.0,0.00935964]
[1722318823366,0.80870639,66689.0,66688.0,0.00935964]
[1722318823602,0.80870639,66689.0,66688.0,0.018]
[1722318823603,1.23034601,66689.0,66688.0,0.018]
[1722318823805,1.36464092,66689.0,66688.0,0.018]
[1722318824006,1.36464092,66689.0,66688.0,0.00935964]
[1722318824007,0.09699697,66689.0,66688.0,0.00935964]
[1722318824222,0.09699697,66689.0,66688.0,0.00035964]
[1722318824577,0.07347097,66689.0,66688.0,0.00935964]
[1722318824946,0.07347097,66689.0,66688.0,0.00035964]
[1722318825149,0.07471257,66690.0,66689.0,0.00035964]
[1722318825363,0.07368936,66690.0,66689.0,0.00035964]
[1722318825561,0.19364736,66690.0,66689.0,0.00035964]
[1722318825903,0.07368936,66690.0,66689.0,0.00035964]
[1722318826519,0.09721505,66690.0,66689.0,0.00035964]
[1722318826935,0.21717305,66690.0,66689.0,0.00035964]
[1722318827393,0.21717305,66690.0,66689.0,0.01535964]
[1722318827891,0.09721505,66690.0,66689.0,0.00035964]
[1722318828102,0.09721505,66690.0,66689.0,0.01635964]
[1722318828343,0.09721505,66690.0,66689.0,0.00835964]
[1722318828589,0.21717305,66690.0,66689.0,0.00035964]
[1722318828940,0.19364736,66690.0,66689.0,0.00835964]